bitfinex/quotes_ETHUSD_20250326
["timestamp","ask_amount","ask_price","bid_price","bid_amount"]
[1742998084928,0.55,2039.3,2038.7,4.90507]
[1742998085521,0.55,2039.3,2038.6,4.90511]
[1742998085728,0.55,2039.3,2038.7,0.565921]
[1742998085960,0.55,2039.3,2038.7,5.470981]
[1742998086258,0.55,2039.1,2038.7,0.565921]
[1742998086461,0.55,2039.1,2038.6,4.90523]
[1742998086954,0.55,2038.9,2038.5,4.90549]
[1742998087257,0.55,2038.9,2038.5,4.9054]
[1742998087560,0.55,2038.9,2038.6,4.90518]
[1742998088056,0.55,2038.9,2038.5,0.04904442]
[1742998088261,0.55,2038.9,2038.5,4.95450442]
[1742998088433,0.55,2038.9,2038.6,5.40069044]
[1742998088634,0.55,2038.9,2038.8,4.90484]
[1742998088850,3.0647,2039.2,2038.8,4.90484]
[1742998089054,0.55,2039.1,2038.8,4.90484]
[1742998089233,3.0647,2039.2,2038.8,4.90484]
[1742998089429,0.55,2039.1,2038.9,15.480992]
[1742998091351,0.55,2039.1,2038.9,14.5]
[1742998092155,3.55,2039.3,2038.9,14.5]
[1742998092928,8.05992683,2039.3,2038.9,14.5]
[1742998094934,0.55,2039.0,2038.9,14.5]
[1742998095126,0.6147,2039.0,2038.6,0.49545044]
[1742998095333,0.55,2038.8,2038.3,4.95499699]
[1742998095648,0.55,2038.8,2038.4,15.5645367]
[1742998095849,0.55,2038.6,2038.1,9.83282]
[1742998096050,0.55,2038.6,2038.1,0.02]
[1742998096252,0.55,2038.4,2038.1,1.619464]
[1742998096452,0.55,2038.4,2038.1,0.02]
[1742998096669,0.55,2038.2,2038.1,0.02]
[1742998097160,0.0647,2038.5,2038.1,0.02]
[1742998097339,0.55,2038.4,2038.1,0.02]
[1742998097541,0.55,2038.2,2038.1,0.02]
[1742998097751,0.55,2038.3,2038.1,0.02]
[1742998098158,0.55,2038.4,2038.1,0.02]
[1742998098689,0.55,2038.4,2038.1,1.00826425]
[1742998098869,0.55,2038.2,2038.1,0.02]
[1742998100181,0.6147,2038.2,2038.1,0.02]
[1742998100479,5.12462683,2038.2,2038.1,0.02]
[1742998101167,8.12462683,2038.2,2038.1,0.02]
[1742998101372,9.96560351,2038.2,2038.1,0.02]
[1742998101681,14.87188351,2038.2,2038.1,0.02]
[1742998102671,8.12462683,2038.2,2038.1,0.02]
[1742998103187,13.03090683,2038.2,2038.1,0.02]
[1742998105673,13.39247565,2038.2,2038.1,0.02]
[1742998110364,18.77347565,2038.2,2038.1,0.02]
[1742998110960,13.31719565,2038.2,2038.1,0.02]
[1742998111457,0.0647,2038.2,2038.1,0.02]
[1742998111668,4.57462683,2038.2,2038.1,0.02]
[1742998111873,5.12462683,2038.2,2038.1,0.02]
[1742998112191,3.0,2038.3,2038.1,0.02]
[1742998112687,7.50992683,2038.7,2038.1,0.5903]
[1742998112994,3.0,2038.2,2038.1,0.02]
[1742998113292,0.55,2038.2,2038.1,0.02]
[1742998113487,3.55,2038.2,2038.1,0.02]
[1742998115499,3.55,2038.4,2038.1,0.02]
[1742998115693,4.50992683,2038.7,2038.2,0.7501]
[1742998115899,4.50992683,2038.7,2038.2,1.317777]
[1742998116074,0.55,2038.5,2038.2,0.7501]
[1742998116274,0.55,2038.3,2038.1,0.02]
[1742998116487,0.55,2038.3,2038.1,0.06906003]
[1742998116996,5.05992683,2038.3,2038.1,0.02]
[1742998117575,3.55,2038.2,2038.1,0.02]
[1742998118370,8.45628,2038.2,2038.1,0.02]
[1742998118582,10.29743668,2038.2,2038.1,0.02]
[1742998118783,10.36213668,2038.2,2038.1,0.02]
[1742998119881,3.6147,2038.2,2038.1,0.02]
[1742998120190,13.90198,2038.2,2038.1,0.02]
[1742998120582,0.55,2037.8,2037.5,0.04907274]
[1742998120788,0.55,2037.8,2037.6,0.7729]
[1742998120987,0.53,2037.9,2037.7,0.61714338]
[1742998121192,0.53,2037.9,2037.7,5.52462338]
[1742998121387,0.53,2037.9,2037.7,0.61714338]
[1742998121593,0.55,2037.8,2037.7,0.61714338]
[1742998122173,0.53,2037.9,2037.8,5.69805]
[1742998122371,0.53,2037.9,2037.8,7.24243402]
[1742998122888,4.57462683,2039.0,2038.3,0.7619]
[1742998123093,4.50992683,2039.0,2038.4,0.04905109]
[1742998123488,5.05992683,2039.2,2038.6,0.7619]
[1742998123701,5.05992683,2039.2,2038.7,1.52619]
[1742998123891,3.0,2039.1,2038.7,1.52619]
[1742998124574,0.55,2039.0,2038.7,1.52619]
[1742998125105,3.0,2039.1,2038.7,1.52619]
[1742998125277,5.05992683,2039.2,2038.8,0.04904604]
[1742998125278,0.55,2039.2,2038.8,0.04904604]
[1742998125479,3.55,2039.2,2038.8,0.72925965]
[1742998125672,0.55,2039.1,2038.8,0.72925965]
[1742998126101,0.55,2039.1,2038.8,0.68021361]
[1742998126274,3.55,2038.9,2038.7,1.52619]
[1742998126476,0.55,2039.1,2038.7,1.52619]
[1742998126694,0.55,2039.1,2038.6,0.7619]
[1742998126870,0.55,2038.9,2038.6,0.7619]
[1742998127419,5.05992683,2038.9,2038.6,0.7619]
[1742998127921,0.55,2038.9,2038.6,0.7619]
[1742998129300,0.55,2039.1,2038.7,0.04904613]
[1742998129478,0.55,2039.1,2038.7,0.62068874]
[1742998129917,0.55,2039.1,2038.7,15.12068874]
[1742998130106,0.55,2039.1,2038.7,0.57164261]
[1742998130404,0.55,2038.9,2038.7,0.57164261]
[1742998131224,0.55,2038.9,2038.6,0.7619]
[1742998131725,5.05992683,2038.9,2038.6,0.7619]
[1742998132167,5.05992683,2038.9,2038.3,15.3205]
[1742998132291,0.55,2038.7,2038.4,0.04905171]
[1742998132827,0.55,2038.7,2038.3,0.8205]
[1742998133183,0.55,2038.7,2038.4,0.04905197]
[1742998133485,0.55,2038.8,2038.4,15.0775702]
[1742998133811,3.55,2038.9,2038.4,15.0775702]
[1742998134179,0.55,2038.7,2038.4,15.0775702]
[1742998134792,0.55,2038.7,2038.4,14.5]
[1742998134992,0.55,2038.7,2038.3,0.8205]
[1742998135518,5.05992683,2038.9,2038.3,15.3205]
[1742998135722,5.05992683,2038.9,2038.4,0.04905179]
[1742998136414,5.05992683,2038.9,2038.3,15.3205]
[1742998136621,0.55,2038.6,2038.3,15.3205]
[1742998136783,0.55,2038.4,2038.3,14.5]
[1742998136982,0.55,2038.4,2038.1,0.8206]
[1742998136983,3.55,2038.4,2038.1,0.8206]
[1742998137427,3.55,2038.4,2038.2,14.5]
[1742998137728,8.05992683,2038.3,2038.2,14.5]
[1742998137930,8.05992683,2038.3,2037.9,0.7761]
[1742998137931,3.55,2038.2,2037.9,0.7761]
[1742998138233,0.55,2038.0,2037.5,0.7761]
[1742998138414,5.05992683,2038.0,2037.9,14.5]
[1742998138627,3.55,2038.0,2037.9,14.5]
[1742998138803,0.55,2037.9,2037.5,0.7761]
[1742998139005,0.55,2037.9,2037.6,0.0490714]
[1742998139205,0.55,2037.9,2037.7,14.5]
[1742998139661,4.50992683,2038.4,2037.8,0.82387142]
[1742998139822,3.0,2038.4,2037.9,0.7748]
[1742998140168,7.50992683,2038.4,2037.9,0.7748]
[1742998140345,0.55,2038.1,2037.9,2.30228]
[1742998140712,0.55,2038.3,2037.9,2.30228]
[1742998141366,3.55,2038.1,2037.9,2.30228]
[1742998141508,0.55,2037.9,2037.7,14.5]
[1742998142664,5.05992683,2037.8,2037.7,14.5]
[1742998142937,0.55,2037.8,2037.7,14.5]
[1742998143138,0.55,2037.8,2037.7,16.737]
[1742998143328,0.55,2037.8,2037.7,15.287]
[1742998143533,0.55,2037.8,2037.7,14.5]
[1742998145023,4.62838587,2037.8,2037.7,14.5]
[1742998145218,7.62838587,2037.8,2037.7,14.5]
[1742998146157,3.55,2037.8,2037.7,14.5]
[1742998147241,3.55,2037.8,2037.7,15.95]
[1742998147432,3.55,2037.8,2037.7,1.45]
[1742998147630,0.55,2037.7,2037.5,0.0490737]
[1742998148063,4.99040877,2038.2,2037.5,0.0490737]
[1742998148270,0.4733,2038.3,2037.6,5.68052]
[1742998148485,3.0,2038.1,2037.7,0.04906695]
[1742998148679,5.06710877,2038.0,2037.8,14.5]
[1742998149454,5.06710877,2038.0,2037.6,0.7728]
[1742998149652,5.06710877,2037.8,2037.4,0.7772]
[1742998149867,5.06710877,2037.8,2037.5,14.5]
[1742998150040,0.55,2037.6,2037.5,14.5]
[1742998150240,5.06710877,2037.6,2037.2,0.7543]
[1742998150439,5.06710877,2037.6,2037.2,1.320641]
[1742998150682,5.06710877,2037.6,2037.2,0.7543]
[1742998150887,3.55,2037.7,2037.3,14.5]
[1742998152053,0.55,2037.8,2037.3,14.5]
[1742998152774,0.55,2037.8,2037.4,0.7813]
[1742998153397,0.55,2037.8,2037.5,14.5]
[1742998154259,0.4733,2038.2,2037.5,14.5]
[1742998154464,7.99040877,2038.2,2037.5,14.5]
[1742998154664,0.55,2038.1,2037.6,0.04907058]
[1742998154899,3.55,2037.9,2037.4,1.35519978]
[1742998155101,3.55,2037.9,2037.5,0.62635998]
[1742998155392,3.55,2037.9,2037.6,14.5]
[1742998156295,3.55,2037.9,2037.5,0.62635998]
[1742998156474,3.55,2037.9,2037.4,1.35519978]
[1742998156475,0.55,2037.7,2037.4,1.35519978]
[1742998156670,0.55,2037.8,2037.4,1.35519978]
[1742998156864,0.55,2037.8,2037.5,14.5]
[1742998157060,0.55,2037.8,2037.5,16.09042753]
[1742998158693,0.55,2038.0,2037.5,20.99830753]
[1742998158898,0.55,2038.0,2037.5,16.09042753]
[1742998159066,0.55,2037.8,2037.5,16.09042753]
[1742998159266,0.55,2037.8,2037.6,0.04907188]
[1742998159499,0.55,2037.8,2037.6,1.6644322]
[1742998159695,0.55,2037.8,2037.5,1.59042753]
[1742998160002,5.06710877,2037.8,2037.6,14.5]
[1742998160178,5.06710877,2037.8,2037.4,0.7813]
[1742998160372,0.55,2037.6,2037.4,0.7813]
[1742998160583,0.55,2037.6,2037.4,15.2813]
[1742998161512,0.55,2037.4,2037.1,0.7779]
[1742998161669,0.55,2037.2,2037.1,0.7779]
[1742998162006,0.55,2037.2,2036.8,14.5]
[1742998162167,0.55,2037.2,2036.9,1.940975]
[1742998162366,3.0,2037.7,2037.0,0.801]
[1742998162587,5.06710877,2037.6,2037.0,5.71014]
[1742998162901,3.55,2037.3,2037.1,0.04908192]
[1742998163211,3.55,2037.3,2037.0,0.801]
[1742998163718,3.55,2037.1,2036.8,14.5]
[1742998164271,3.55,2037.1,2036.8,16.516283]
[1742998165090,0.55,2037.2,2036.9,0.04909011]
[1742998166307,0.55,2037.2,2036.8,16.516283]
[1742998166880,0.55,2037.0,2036.8,16.516283]
[1742998168126,3.55,2037.2,2036.8,16.516283]
[1742998168431,4.08084219,2037.5,2037.0,0.7514]
[1742998168632,0.55,2037.4,2037.0,0.7514]
[1742998169002,0.55,2037.4,2037.1,0.04908388]
[1742998169204,0.55,2037.4,2037.0,0.7514]
[1742998169205,0.55,2037.1,2037.0,0.7514]
[1742998170353,4.08084219,2037.1,2036.9,0.04908388]
[1742998170525,0.55,2036.9,2036.3,0.8067]
[1742998170834,0.55,2036.5,2036.4,14.5]
[1742998171939,3.55,2036.5,2036.4,14.5]
[1742998172633,0.4733,2037.4,2036.5,0.8179]
[1742998172814,3.0,2036.8,2036.5,0.8179]
[1742998173015,4.63084219,2036.7,2036.5,0.8179]
[1742998173224,4.63084219,2036.7,2036.4,14.5]
[1742998173560,4.63084219,2036.5,2036.4,14.5]
[1742998173746,7.63084219,2036.5,2036.4,14.5]
[1742998177325,3.55,2036.4,2036.1,0.02]
[1742998177526,7.63084219,2036.2,2036.1,0.02]
[1742998178654,17.09608438,2036.2,2036.1,0.02]
[1742998179254,13.38216501,2036.2,2036.1,0.02]
[1742998179456,4.0233,2036.2,2036.1,0.02]
[1742998179653,13.48414219,2036.2,2036.1,0.02]
[1742998180576,3.0,2036.2,2036.1,0.02]
[1742998180874,9.46084219,2036.6,2036.1,0.02]
[1742998181026,4.08084219,2036.4,2036.1,1.09075513]
[1742998181421,0.55,2036.3,2036.2,14.5]
[1742998181668,4.08084219,2036.4,2036.2,14.5]
[1742998182151,0.55,2036.3,2036.2,14.5]
[1742998182327,4.08084219,2036.4,2036.2,14.5]
[1742998182534,4.08084219,2036.4,2036.2,16.55023351]
[1742998182748,0.55,2036.3,2036.2,16.55023351]
[1742998182954,0.55,2036.4,2036.2,16.55023351]
[1742998183354,0.55,2036.4,2036.2,14.5]
[1742998188059,3.0,2036.9,2036.3,5.75739544]
[1742998188260,3.0,2036.9,2036.3,5.70829]
[1742998189742,0.55,2036.8,2036.4,21.431317]
[1742998189960,0.55,2036.8,2036.5,0.04910314]
[1742998190273,0.55,2036.6,2036.5,0.73716864]
[1742998190455,0.55,2036.6,2036.4,2.06996626]
[1742998190646,0.55,2036.6,2036.5,14.5]
[1742998191087,8.07372702,2036.6,2036.5,14.5]
[1742998191290,8.07372702,2036.6,2036.1,4.93133]
[1742998191291,8.07372702,2036.6,2036.1,0.853]
[1742998191454,8.07372702,2036.6,2036.1,5.76431]
[1742998191772,8.07372702,2036.6,2036.2,19.4111]
[1742998191980,3.55,2036.6,2036.3,2.517541]
[1742998192474,3.55,2036.6,2036.3,4.91084]
[1742998192661,3.55,2036.6,2036.4,14.5]
[1742998193174,3.55,2036.6,2036.5,0.7686]
[1742998193340,4.52372702,2037.1,2036.5,5.67896]
[1742998193546,0.55,2036.9,2036.5,0.81769925]
[1742998193855,0.55,2036.7,2036.6,2.02282793]
[1742998196073,0.55,2036.7,2036.5,0.7686]
[1742998196279,5.07372702,2036.7,2036.2,0.7503]
[1742998196463,0.55,2036.4,2036.2,0.7503]
[1742998196665,0.55,2036.4,2036.2,15.2503]
[1742998196865,0.55,2036.5,2036.3,1.52703]
[1742998198195,0.55,2036.5,2036.2,15.2503]
[1742998198585,3.0,2036.8,2036.3,0.0491073]
[1742998198778,3.0,2036.6,2036.2,15.2503]
[1742998198966,0.55,2036.5,2036.2,15.2503]
[1742998199167,0.55,2036.5,2036.2,20.16137]
[1742998199467,0.55,2036.5,2036.3,2.509258]
[1742998199997,5.07372702,2036.5,2036.2,15.2503]
[1742998200599,0.55,2036.5,2036.2,15.2503]
[1742998201292,3.55,2036.5,2036.2,15.2503]
[1742998201795,0.55,2036.7,2036.2,15.2503]
[1742998201995,4.99702702,2037.1,2036.5,4.91017]
[1742998202170,4.99702702,2037.3,2036.7,4.90981]
[1742998202365,0.4733,2037.5,2036.8,4.95874138]
[1742998202570,0.4733,2037.5,2036.8,4.95866138]
[1742998202571,4.52372702,2037.4,2036.8,4.95866138]
[1742998202802,4.52372702,2037.2,2036.6,11.108597]
[1742998203112,4.52372702,2037.2,2036.7,1.1108597]
[1742998203397,4.52372702,2037.0,2036.7,1.1108597]
[1742998203585,0.55,2036.9,2036.4,5.67818]
[1742998203982,0.55,2036.9,2036.4,10.58864]
[1742998204178,0.55,2036.9,2036.5,4.95945623]
[1742998204499,0.55,2037.1,2036.5,4.91028]
[1742998204713,0.55,2037.1,2036.6,5.477938]
[1742998204877,4.63129232,2037.1,2036.7,4.95891382]
[1742998205084,0.55,2037.2,2036.8,0.7677]
[1742998208321,0.55,2036.9,2036.6,1.335498]
[1742998208616,0.55,2036.7,2036.4,0.7871]
[1742998208824,0.55,2036.5,2036.4,0.7871]
[1742998209303,0.55,2036.7,2036.4,0.7871]
[1742998210095,0.4733,2037.1,2036.5,4.91034]
[1742998210402,4.63129232,2037.3,2036.8,0.7871]
[1742998210605,0.55,2037.3,2036.8,0.7871]
[1742998210911,0.55,2037.1,2036.8,0.83619164]
[1742998211073,4.08129232,2037.0,2036.8,0.83619164]
[1742998211279,0.55,2036.9,2036.6,1.356844]
[1742998211805,0.55,2036.9,2036.7,0.6267184]
[1742998212279,0.55,2036.9,2036.6,0.7871]
[1742998212489,0.55,2037.2,2036.6,0.7871]
[1742998212720,0.55,2036.7,2036.6,0.7871]
[1742998213216,0.55,2037.0,2036.6,5.69714]
[1742998213789,0.55,2037.0,2036.6,0.7871]
[1742998214223,0.55,2037.0,2036.6,6.757972]
[1742998214418,0.55,2036.8,2036.4,4.91055]
[1742998214625,0.55,2036.8,2036.4,5.71415]
[1742998214994,0.55,2036.8,2036.5,0.04909844]
[1742998215329,7.63129232,2037.1,2036.5,4.95947844]
[1742998215525,4.63129232,2037.1,2036.5,4.95947844]
[1742998215728,4.63129232,2037.1,2036.5,6.02683928]
[1742998216026,4.63129232,2037.1,2036.5,1.11645928]
[1742998216193,4.63129232,2037.1,2036.5,6.02675928]
[1742998217027,4.08129232,2037.1,2036.5,6.02675928]
[1742998217227,0.55,2037.0,2036.5,1.11645928]
[1742998217425,0.55,2037.0,2036.6,4.90994]
[1742998217621,0.55,2037.2,2036.7,0.86559263]
[1742998218141,0.55,2037.2,2036.8,14.5]
[1742998220043,0.55,2037.2,2036.7,0.8165]
[1742998220256,0.55,2037.2,2036.7,1.92924662]
[1742998220455,0.55,2037.2,2036.8,14.5]
[1742998220621,0.55,2037.0,2036.8,14.5]
[1742998220817,0.55,2037.0,2036.7,1.063654]
[1742998221460,0.55,2037.0,2036.5,0.8143]
[1742998221461,0.55,2036.8,2036.5,0.8143]
[1742998221611,0.55,2036.8,2036.1,6.39864944]
[1742998221612,0.55,2036.6,2036.3,0.774]
[1742998221806,0.55,2036.6,2036.3,5.68477]
[1742998222123,0.55,2036.8,2036.4,14.54910067]
[1742998222322,0.55,2036.6,2036.4,14.5]
[1742998222919,0.55,2036.8,2036.4,14.5]
[1742998223116,0.55,2036.8,2036.5,4.95931329]
[1742998223311,4.55459232,2037.1,2036.5,9.86956329]
[1742998223517,4.55459232,2037.1,2036.4,2.50958]
[1742998223518,0.4733,2037.3,2036.8,4.90944]
[1742998223716,4.08129232,2037.4,2036.9,19.45839212]
[1742998223938,4.08129232,2037.4,2036.9,14.5]
[1742998224150,4.08129232,2037.2,2036.9,14.5]
[1742998224519,3.0,2037.3,2036.9,15.77010763]
[1742998224720,3.0,2037.3,2037.0,0.7843]
[1742998224915,3.0,2037.3,2037.0,0.83338784]
[1742998225151,5.373,2037.6,2037.0,5.74248784]
[1742998225447,5.373,2037.6,2037.1,4.90885]
[1742998225448,9.45429232,2037.6,2037.1,4.90885]
[1742998225624,9.45429232,2037.6,2037.2,0.57422378]
[1742998225819,3.0,2037.5,2037.2,0.57422378]
[1742998226338,4.90691,2038.0,2037.3,0.0490823]
[1742998226539,4.55459232,2037.9,2037.3,0.0490823]
[1742998226848,0.55,2037.6,2037.3,0.0490823]
[1742998227148,0.55,2037.6,2037.3,0.60229291]
[1742998227349,0.55,2037.6,2037.3,0.55321061]
[1742998227565,0.55,2037.6,2037.2,0.57422378]
[1742998227773,0.55,2037.5,2037.2,0.57422378]
[1742998227970,0.55,2037.5,2037.1,0.04908279]
[1742998228471,0.55,2037.5,2037.1,4.95792279]
[1742998228673,0.55,2037.5,2037.0,0.7843]
[1742998228862,0.55,2037.3,2037.0,0.7843]
[1742998229246,0.55,2037.1,2036.7,0.8307]
[1742998229447,0.55,2037.1,2036.8,0.62316676]
[1742998229647,0.55,2037.1,2036.8,5.53258676]
[1742998229876,0.55,2037.1,2036.8,0.62316676]
[1742998230121,0.55,2037.1,2036.8,0.62316677]
[1742998230259,5.8453,2037.5,2036.9,0.8231]
[1742998230260,3.0,2037.4,2036.9,0.8231]
[1742998230566,0.55,2037.3,2037.0,0.04908314]
[1742998230771,0.55,2037.3,2036.9,0.8231]
[1742998230772,0.55,2037.2,2036.9,0.8231]
[1742998230968,0.55,2037.0,2036.8,0.574076]
[1742998231185,0.20437942,2036.9,2036.8,0.574076]
[1742998231494,0.20437942,2036.9,2036.8,20.03282702]
[1742998231675,0.75437942,2036.9,2036.8,15.074076]
[1742998232071,0.75437942,2036.9,2036.8,19.983736]
[1742998232663,4.83567174,2036.9,2036.8,14.5]
[1742998232860,0.55,2036.8,2036.5,0.8141]
[1742998233101,0.55,2036.6,2036.2,5.72504]
[1742998233427,0.55,2036.9,2036.7,4.90987]
[1742998233563,0.55,2036.9,2036.8,4.90966]
[1742998233770,0.4733,2037.2,2036.7,0.573947]
[1742998233771,4.63129232,2037.0,2036.7,0.573947]
[1742998234000,7.55459232,2037.2,2036.7,0.573947]
[1742998234310,7.55459232,2037.2,2036.5,0.8296]
[1742998234311,4.63129232,2037.1,2036.6,4.91005]
[1742998234468,4.63129232,2037.1,2036.8,14.5]
[1742998237401,0.55,2037.1,2036.8,14.5]
[1742998237614,4.63129232,2037.1,2036.6,4.91013]
[1742998238006,4.63129232,2037.1,2036.7,14.5]
[1742998238208,4.63129232,2037.1,2036.8,1.99010436]
[1742998238409,4.63129232,2037.1,2036.8,1.941013]
[1742998239032,4.63129232,2037.1,2036.6,4.90997]
[1742998239322,0.55,2036.8,2036.5,0.8296]
[1742998239526,0.55,2036.8,2036.5,5.7399]
[1742998239691,4.63129232,2037.1,2036.6,4.91011]
[1742998239888,0.55,2037.1,2036.7,4.9589835]
[1742998240222,4.55459232,2037.8,2037.2,5.73436]
[1742998240394,4.08129232,2037.7,2037.3,0.04907923]
[1742998240595,3.0,2037.6,2037.3,0.04907923]
[1742998240795,4.08129232,2037.5,2036.9,5.73531]
[1742998240995,0.55,2037.2,2036.9,10.64438]
[1742998241201,0.55,2037.2,2037.0,1.65092783]
[1742998241427,0.55,2037.2,2036.9,0.87498563]
[1742998241631,0.55,2037.3,2036.9,0.87498563]
[1742998241800,4.63129232,2037.3,2036.9,0.87498563]
[1742998242212,4.63129232,2037.3,2036.9,5.78435563]
[1742998242627,0.4733,2037.6,2037.2,4.90865]
[1742998242933,3.0,2037.8,2037.3,0.7973]
[1742998242934,4.08129232,2037.7,2037.3,0.7973]
[1742998243133,4.08129232,2037.7,2037.3,0.84638291]
[1742998243337,28.879,2038.1,2037.4,4.9082]
[1742998243538,0.14468956,2037.6,2037.3,5.70574]
[1742998243709,4.08129232,2037.7,2037.3,5.70574]
[1742998243905,0.14649925,2037.5,2037.4,1.1105295]
[1742998244110,4.08129232,2037.7,2037.4,1.1105295]
[1742998244735,0.69708764,2037.6,2037.4,1.1105295]
[1742998245038,0.69708764,2037.6,2037.4,6.0187095]
[1742998245435,0.69708764,2037.6,2037.4,1.1105295]
[1742998247143,0.69708764,2037.6,2037.4,6.06766526]
[1742998247438,0.14708764,2037.6,2037.5,6.40448495]
[1742998247609,0.55,2038.1,2038.0,4.90677]
[1742998247809,0.55,2038.1,2038.0,5.72167]
[1742998248020,0.55,2038.1,2038.0,2.29079427]
[1742998248440,0.70330735,2038.1,2038.0,0.8149]
[1742998248609,1.25330735,2038.1,2038.0,0.8149]
[1742998248943,1.25330735,2038.1,2037.6,4.08129232]
[1742998248944,1.25330735,2038.1,2037.8,0.8249]
[1742998249412,1.25330735,2038.1,2037.8,5.732]
[1742998250109,1.25330735,2038.1,2037.8,0.8249]
[1742998250433,1.25330735,2038.1,2037.8,1.888894]
[1742998250741,0.55,2038.0,2037.8,6.84515943]
[1742998250937,0.55,2038.0,2037.8,1.888894]
[1742998251143,0.55,2038.0,2037.8,0.8249]
[1742998254437,0.6716069,2038.0,2037.8,2.425468]
[1742998254748,0.1216069,2038.0,2037.9,4.90701]
[1742998254949,0.6716069,2038.0,2037.9,6.13587142]
[1742998255335,0.55,2038.0,2037.9,6.13587142]
[1742998255578,0.6716069,2038.0,2037.9,1.22886142]
[1742998255875,0.70562639,2038.0,2037.9,1.27792554]
[1742998256076,0.55,2037.9,2037.8,7.332718]
[1742998256363,0.55,2037.9,2037.8,2.425468]
[1742998256567,0.58363271,2037.9,2037.8,0.8249]
[1742998256725,0.58363271,2037.9,2037.8,0.87396678]
[1742998257471,0.58363271,2037.9,2037.8,5.78121678]
[1742998258051,0.03363271,2037.9,2037.8,5.78121678]
[1742998258551,0.15562639,2037.9,2037.8,5.78121678]
[1742998258753,0.15562639,2037.9,2037.8,8.23650591]
[1742998259141,0.15562639,2037.9,2037.8,5.78121558]
[1742998259865,0.15562639,2037.9,2037.8,0.8249]
[1742998260238,0.15562639,2037.9,2037.8,5.78121564]
[1742998260764,0.15562639,2037.9,2037.6,0.8018]
[1742998261062,0.15562639,2037.9,2037.7,4.90734]
[1742998261279,0.15562639,2037.9,2037.7,5.48316111]
[1742998261467,0.15562639,2037.9,2037.7,0.57582111]
[1742998261678,0.55,2037.6,2037.2,0.8018]
[1742998261967,0.55,2037.6,2037.3,0.04907874]
[1742998262339,0.55,2037.6,2037.2,0.8018]
[1742998262538,0.55,2037.6,2037.3,0.04907957]
[1742998262735,0.55,2037.6,2037.3,0.04907963]
[1742998263066,0.55,2037.4,2037.0,0.7898]
[1742998263271,0.52626598,2037.6,2037.0,0.83888475]
[1742998263472,0.55,2037.6,2037.1,4.90883]
[1742998263667,0.55,2037.4,2037.0,5.69893]
[1742998263841,0.55,2037.4,2037.1,0.04908208]
[1742998264042,0.55,2037.4,2037.1,4.95801202]
[1742998264452,0.55,2037.4,2037.0,5.6988]
[1742998264649,0.55,2037.4,2037.1,1.109903]
[1742998264857,0.55,2037.4,2037.0,0.7898]
[1742998265252,0.55,2037.4,2037.0,5.74797208]
[1742998265466,0.02918106,2037.3,2037.0,10.65701208]
[1742998265683,0.55,2037.4,2037.0,5.69884]
[1742998265890,0.55,2037.1,2037.0,5.74795496]
[1742998266182,0.55,2037.1,2037.0,1.11481146]
[1742998266392,0.57840672,2037.1,2037.0,1.0657265]
[1742998266569,0.55,2037.2,2036.8,5.67553]
[1742998266758,0.55,2037.2,2036.9,0.04908821]
[1742998266955,4.08129232,2037.1,2036.7,5.62890706]
[1742998267159,0.55,2037.0,2036.7,4.9098]
[1742998267346,0.55,2037.0,2036.8,1.10889614]
[1742998267575,0.55,2036.8,2036.6,0.7782]
[1742998268195,0.55,2036.8,2036.4,5.68882]
[1742998268393,0.55,2036.8,2036.1,28.332]
[1742998268394,0.55,2036.4,2036.2,5.68919]
[1742998268689,0.67842018,2036.3,2036.2,0.7782]
[1742998268861,0.67842018,2036.3,2036.2,5.73840476]
[1742998268862,0.55,2036.3,2036.2,5.73840476]
[1742998269063,0.55,2036.3,2036.2,6.80536824]
[1742998269394,0.55,2036.2,2036.1,0.02]
[1742998269760,0.14878879,2036.2,2036.1,0.02]
[1742998269958,0.14878879,2036.2,2036.1,4.98045591]
[1742998270464,0.14878879,2036.2,2036.1,0.06910591]
[1742998270685,0.14878879,2036.2,2036.1,0.02]
[1742998270888,0.14878879,2036.2,2036.1,0.06910604]
[1742998271189,0.14878879,2036.2,2036.1,0.02]
[1742998271609,0.69878879,2036.2,2036.1,0.02]
[1742998272691,0.55,2036.2,2036.1,0.02]
[1742998272891,0.6987888,2036.2,2036.1,0.02]
[1742998273868,4.78008112,2036.2,2036.1,0.02]
[1742998274055,6.03138923,2036.2,2036.1,0.02]
[1742998274256,9.03138923,2036.2,2036.1,0.02]
[1742998275478,9.03138923,2036.2,2036.1,0.02]
[1742998275676,13.94248923,2036.2,2036.1,0.02]
[1742998275888,9.03138923,2036.2,2036.1,0.02]
[1742998276079,13.94248923,2036.2,2036.1,0.02]
[1742998276294,9.03138923,2036.2,2036.1,0.02]
[1742998276495,13.94248923,2036.2,2036.1,0.02]
[1742998277066,9.03138923,2036.2,2036.1,0.02]
[1742998277265,3.6220888,2036.2,2036.1,0.02]
[1742998277682,4.1720888,2036.2,2036.1,0.02]
[1742998277997,0.6987888,2036.2,2036.1,0.02]
[1742998278197,0.1487888,2036.2,2036.1,0.02]
[1742998278810,0.1487888,2036.2,2036.1,5.73805766]
[1742998279010,0.1487888,2036.2,2036.1,7.21114166]
[1742998279160,0.4733,2036.7,2036.3,4.91083]
[1742998279363,4.08129232,2036.8,2036.3,4.95993227]